[Event "Titled Tuesday Blitz January 31 Late 2023"]
[White "Nikologorsky, Matfei"]
[Black "kiwibobo"]
[WhiteFideId "24102474"]
[WhiteElo "2182"]
[BlackElo "2087"]
[Result "1-0"]
[Round "09"]
[TimeControl "180+2"]
[Date "2023.01.31"]
[WhiteClock "0:00:07"]
[BlackClock "0:00:01"]

1. e4 {[%clk 0:03:00]}  e5 {[%clk 0:02:56]} 2. Nf3 {[%clk 0:02:59]}  Nc6 {[%clk 0:02:56]} 3. Bc4 {[%clk 0:03:00]}  Nf6 {[%clk 0:02:55]} 4. Ng5 {[%clk 0:03:00]}  d5 {[%clk 0:02:54]} 5. exd5 {[%clk 0:03:00]}  Na5 {[%clk 0:02:54]} 6. Bb5+ {[%clk 0:03:00]}  c6 {[%clk 0:02:55]} 7. dxc6 {[%clk 0:03:00]}  bxc6 {[%clk 0:02:56]} 8. Qf3 {[%clk 0:03:00]}  Be7 {[%clk 0:02:55]} 9. Bxc6+ {[%clk 0:02:55]}  Nxc6 {[%clk 0:02:56]} 10. Qxc6+ {[%clk 0:02:55]}  Bd7 {[%clk 0:02:57]} 11. Qc4 {[%clk 0:02:54]}  O-O {[%clk 0:02:57]} 12. Nc3 {[%clk 0:02:50]}  Rc8 {[%clk 0:02:53]} 13. Qe2 {[%clk 0:02:48]}  Ng4 {[%clk 0:02:50]} 14. Nf3 {[%clk 0:02:37]}  Re8 {[%clk 0:02:19]} 15. O-O {[%clk 0:02:29]}  Be6 {[%clk 0:02:15]} 16. h3 {[%clk 0:02:22]}  Nh6 {[%clk 0:02:08]} 17. Nxe5 {[%clk 0:02:18]}  Bd6 {[%clk 0:02:01]} 18. d4 {[%clk 0:01:47]}  Bc4 {[%clk 0:01:35]} 19. Qh5 {[%clk 0:01:21]}  Bxf1 {[%clk 0:01:31]} 20. Bxh6 {[%clk 0:01:21]}  Bxe5 {[%clk 0:01:25]} 21. dxe5 {[%clk 0:01:15]}  gxh6 {[%clk 0:01:00]} 22. Rxf1 {[%clk 0:01:09]}  Qg5 {[%clk 0:01:00]} 23. Qxg5+ {[%clk 0:01:00]}  hxg5 {[%clk 0:01:01]} 24. Re1 {[%clk 0:00:44]}  Rc5 {[%clk 0:00:53]} 25. Rd1 {[%clk 0:00:35]}  Rcxe5 {[%clk 0:00:48]} 26. Kf1 {[%clk 0:00:34]}  Rc5 {[%clk 0:00:42]} 27. Rd2 {[%clk 0:00:28]}  Rce5 {[%clk 0:00:38]} 28. g3 {[%clk 0:00:21]}  Re1+ {[%clk 0:00:36]} 29. Kg2 {[%clk 0:00:21]}  Ra1 {[%clk 0:00:34]} 30. Kf3 {[%clk 0:00:18]}  Rb8 {[%clk 0:00:34]} 31. b3 {[%clk 0:00:18]}  Rc8 {[%clk 0:00:34]} 32. Nd5 {[%clk 0:00:17]}  Kg7 {[%clk 0:00:29]} 33. c4 {[%clk 0:00:17]}  Rc6 {[%clk 0:00:24]} 34. Kg4 {[%clk 0:00:17]}  h6 {[%clk 0:00:21]} 35. Ne3 {[%clk 0:00:16]}  Ra6 {[%clk 0:00:20]} 36. Nf5+ {[%clk 0:00:16]}  Kg6 {[%clk 0:00:20]} 37. Ne7+ {[%clk 0:00:12]}  Kg7 {[%clk 0:00:19]} 38. a4 {[%clk 0:00:12]}  Re6 {[%clk 0:00:15]} 39. Nf5+ {[%clk 0:00:12]}  Kg6 {[%clk 0:00:15]} 40. Ne3 {[%clk 0:00:11]}  Rb1 {[%clk 0:00:10]} 41. Rc2 {[%clk 0:00:10]}  Rxb3 {[%clk 0:00:10]} 42. c5 {[%clk 0:00:11]}  Rb8 {[%clk 0:00:06]} 43. Rc4 {[%clk 0:00:10]}  Rc8 {[%clk 0:00:06]} 44. Nd5 {[%clk 0:00:10]}  f5+ {[%clk 0:00:06]} 45. Kf3 {[%clk 0:00:11]}  Re5 {[%clk 0:00:06]} 46. Rd4 {[%clk 0:00:08]}  Rxc5 {[%clk 0:00:05]} 47. Ne3 {[%clk 0:00:08]}  Rc3 {[%clk 0:00:05]} 48. Rd6+ {[%clk 0:00:08]}  Kg7 {[%clk 0:00:03]} 49. Rd7+ {[%clk 0:00:08]}  Kf6 {[%clk 0:00:04]} 50. Rxa7 {[%clk 0:00:08]}  Re4 {[%clk 0:00:02]} 51. Ra6+ {[%clk 0:00:08]}  Ke5 {[%clk 0:00:01]} 52. Ra5+ {[%clk 0:00:07]} 1-0


[Site "https://www.chess.com"]

[Event "Titled Tuesday Blitz January 31 Late 2023"]
[White "Desideri, Ricardo Maruchi"]
[Black "Pino Perez, Lazaro"]
[WhiteFideId "2110440"]
[BlackFideId "3517055"]
[WhiteElo "1959"]
[BlackElo "2142"]
[Result "0-1"]
[Round "09"]
[TimeControl "180+2"]
[Date "2023.01.31"]
[WhiteClock "0:01:42"]
[BlackClock "0:02:25"]

1. e4 {[%clk 0:03:00]}  c5 {[%clk 0:02:51]} 2. Nf3 {[%clk 0:02:58]}  g6 {[%clk 0:02:51]} 3. d4 {[%clk 0:02:58]}  cxd4 {[%clk 0:02:52]} 4. Nxd4 {[%clk 0:02:58]}  Nc6 {[%clk 0:02:52]} 5. Nc3 {[%clk 0:02:58]}  Bg7 {[%clk 0:02:52]} 6. Be3 {[%clk 0:02:59]}  Nf6 {[%clk 0:02:49]} 7. Bc4 {[%clk 0:02:59]}  O-O {[%clk 0:02:49]} 8. O-O {[%clk 0:02:57]}  Nxe4 {[%clk 0:02:47]} 9. Nxc6 {[%clk 0:02:44]}  Nxc3 {[%clk 0:02:31]} 10. Nxd8 {[%clk 0:02:40]}  Nxd1 {[%clk 0:02:30]} 11. Nxf7 {[%clk 0:02:09]}  Nxe3 {[%clk 0:02:27]} 12. fxe3 {[%clk 0:02:08]}  d5 {[%clk 0:02:26]} 13. Bxd5 {[%clk 0:01:42]}  e6 {[%clk 0:02:25]} 0-1


[Site "https://www.chess.com"]

[Event "Titled Tuesday Blitz January 31 Late 2023"]
[White "Richterova, Natasa"]
[Black "Gomes, Luiz Alexandre de Souza"]
[WhiteFideId "350591"]
[BlackFideId "2102790"]
[WhiteElo "2191"]
[BlackElo "2254"]
[Result "0-1"]
[Round "09"]
[TimeControl "180+2"]
[Date "2023.01.31"]
[WhiteClock "0:00:07"]
[BlackClock "0:00:55"]

1. e4 {[%clk 0:02:59]}  c5 {[%clk 0:02:49]} 2. Nf3 {[%clk 0:02:58]}  d6 {[%clk 0:02:49]} 3. Bb5+ {[%clk 0:02:58]}  Nd7 {[%clk 0:02:49]} 4. O-O {[%clk 0:02:57]}  a6 {[%clk 0:02:49]} 5. Bxd7+ {[%clk 0:02:57]}  Bxd7 {[%clk 0:02:50]} 6. d4 {[%clk 0:02:58]}  e6 {[%clk 0:02:50]} 7. c3 {[%clk 0:02:43]}  Nf6 {[%clk 0:02:49]} 8. Re1 {[%clk 0:02:40]}  Be7 {[%clk 0:02:50]} 9. b3 {[%clk 0:02:22]}  O-O {[%clk 0:02:40]} 10. Bb2 {[%clk 0:02:22]}  Rc8 {[%clk 0:02:40]} 11. Nbd2 {[%clk 0:02:22]}  cxd4 {[%clk 0:02:37]} 12. cxd4 {[%clk 0:02:22]}  Re8 {[%clk 0:02:36]} 13. Rc1 {[%clk 0:02:07]}  Qa5 {[%clk 0:02:35]} 14. Nc4 {[%clk 0:02:01]}  Qh5 {[%clk 0:02:35]} 15. Nb6 {[%clk 0:01:46]}  Rxc1 {[%clk 0:02:33]} 16. Qxc1 {[%clk 0:01:40]}  Bc6 {[%clk 0:02:33]} 17. d5 {[%clk 0:01:24]}  exd5 {[%clk 0:02:31]} 18. Bxf6 {[%clk 0:00:59]}  gxf6 {[%clk 0:02:20]} 19. exd5 {[%clk 0:00:58]}  Bxd5 {[%clk 0:02:19]} 20. Nxd5 {[%clk 0:00:56]}  Qxd5 {[%clk 0:02:18]} 21. Rd1 {[%clk 0:00:42]}  Qc5 {[%clk 0:02:04]} 22. Nd4 {[%clk 0:00:39]}  Bf8 {[%clk 0:02:01]} 23. Qd2 {[%clk 0:00:24]}  Re4 {[%clk 0:01:54]} 24. Nf3 {[%clk 0:00:23]}  Qf5 {[%clk 0:01:48]} 25. h3 {[%clk 0:00:20]}  Qe6 {[%clk 0:01:45]} 26. Nd4 {[%clk 0:00:20]}  Qd5 {[%clk 0:01:43]} 27. Nf3 {[%clk 0:00:19]}  Qxd2 {[%clk 0:01:43]} 28. Rxd2 {[%clk 0:00:20]}  Kg7 {[%clk 0:01:40]} 29. Nd4 {[%clk 0:00:18]}  Kg6 {[%clk 0:01:39]} 30. g4 {[%clk 0:00:19]}  h5 {[%clk 0:01:39]} 31. f3 {[%clk 0:00:18]}  Re1+ {[%clk 0:01:37]} 32. Kf2 {[%clk 0:00:18]}  Rh1 {[%clk 0:01:37]} 33. Kg2 {[%clk 0:00:18]}  Ra1 {[%clk 0:01:37]} 34. Nf5 {[%clk 0:00:18]}  hxg4 {[%clk 0:01:37]} 35. hxg4 {[%clk 0:00:18]}  Kg5 {[%clk 0:01:33]} 36. Kg3 {[%clk 0:00:18]}  Rg1+ {[%clk 0:01:32]} 37. Kf2 {[%clk 0:00:19]}  Ra1 {[%clk 0:01:26]} 38. Ke3 {[%clk 0:00:18]}  Re1+ {[%clk 0:01:17]} 39. Kf2 {[%clk 0:00:18]}  Ra1 {[%clk 0:01:12]} 40. Kg2 {[%clk 0:00:18]}  a5 {[%clk 0:01:11]} 41. Kg3 {[%clk 0:00:18]}  b5 {[%clk 0:01:05]} 42. f4+ {[%clk 0:00:17]}  Kg6 {[%clk 0:01:05]} 43. Nxd6 {[%clk 0:00:15]}  Bxd6 {[%clk 0:01:03]} 44. Rxd6 {[%clk 0:00:15]}  Rxa2 {[%clk 0:01:03]} 45. f5+ {[%clk 0:00:12]}  Kg7 {[%clk 0:01:03]} 46. Rb6 {[%clk 0:00:11]}  b4 {[%clk 0:01:03]} 47. Rb5 {[%clk 0:00:11]}  Ra3 {[%clk 0:01:03]} 48. Kf4 {[%clk 0:00:11]}  Ra1 {[%clk 0:01:02]} 49. g5 {[%clk 0:00:10]}  Rf1+ {[%clk 0:01:01]} 50. Kg4 {[%clk 0:00:10]}  Rg1+ {[%clk 0:01:00]} 51. Kf4 {[%clk 0:00:11]}  fxg5+ {[%clk 0:01:01]} 52. Ke5 {[%clk 0:00:11]}  Re1+ {[%clk 0:00:59]} 53. Kd4 {[%clk 0:00:11]}  Kf6 {[%clk 0:00:56]} 54. Kc4 {[%clk 0:00:10]}  Re5 {[%clk 0:00:55]} 55. Rb6+ {[%clk 0:00:10]}  Kxf5 {[%clk 0:00:55]} 56. Rb7 {[%clk 0:00:10]}  f6 {[%clk 0:00:56]} 57. Kd4 {[%clk 0:00:09]}  g4 {[%clk 0:00:55]} 58. Rg7 {[%clk 0:00:08]}  Re4+ {[%clk 0:00:54]} 59. Kd5 {[%clk 0:00:08]}  Re3 {[%clk 0:00:54]} 60. Kc4 {[%clk 0:00:06]}  Rc3+ {[%clk 0:00:54]} 61. Kb5 {[%clk 0:00:06]}  Rxb3 {[%clk 0:00:55]} 62. Kxa5 {[%clk 0:00:07]}  g3 {[%clk 0:00:55]} 0-1


[Site "https://www.chess.com"]

[Event "Titled Tuesday Blitz January 31 Late 2023"]
[White "Corredor Castellanos, Camilo"]
[Black "Smith, Garrett L"]
[WhiteFideId "4425871"]
[BlackFideId "2024829"]
[WhiteElo "1957"]
[BlackElo "2047"]
[Result "1/2-1/2"]
[Round "09"]
[TimeControl "180+2"]
[Date "2023.01.31"]
[WhiteClock "0:01:40"]
[BlackClock "0:00:22"]

1. e4 {[%clk 0:02:57]}  c5 {[%clk 0:02:59]} 2. Nf3 {[%clk 0:02:56]}  Nc6 {[%clk 0:02:59]} 3. d4 {[%clk 0:02:56]}  cxd4 {[%clk 0:03:00]} 4. Nxd4 {[%clk 0:02:57]}  e5 {[%clk 0:03:00]} 5. Nb5 {[%clk 0:02:56]}  d6 {[%clk 0:03:00]} 6. N1c3 {[%clk 0:02:56]}  a6 {[%clk 0:03:00]} 7. Na3 {[%clk 0:02:56]}  Be7 {[%clk 0:03:01]} 8. Nd5 {[%clk 0:02:52]}  Nf6 {[%clk 0:03:01]} 9. Bd3 {[%clk 0:02:48]}  Nxd5 {[%clk 0:03:01]} 10. exd5 {[%clk 0:02:49]}  Qa5+ {[%clk 0:03:02]} 11. Bd2 {[%clk 0:02:47]}  Qxd5 {[%clk 0:03:02]} 12. O-O {[%clk 0:02:48]}  e4 {[%clk 0:03:02]} 13. Bc4 {[%clk 0:02:48]}  Qf5 {[%clk 0:03:02]} 14. b4 {[%clk 0:02:45]}  Qg6 {[%clk 0:02:56]} 15. Kh1 {[%clk 0:02:41]}  Be6 {[%clk 0:02:42]} 16. Bc3 {[%clk 0:02:41]}  O-O {[%clk 0:02:35]} 17. Bd5 {[%clk 0:02:40]}  Rac8 {[%clk 0:02:19]} 18. Re1 {[%clk 0:02:33]}  Bf5 {[%clk 0:01:30]} 19. Nc4 {[%clk 0:02:31]}  Bh4 {[%clk 0:01:27]} 20. Qd2 {[%clk 0:02:21]}  Ne7 {[%clk 0:01:19]} 21. Ne3 {[%clk 0:02:15]}  Bg5 {[%clk 0:01:15]} 22. Bxb7 {[%clk 0:02:14]}  Rc7 {[%clk 0:01:11]} 23. Bxa6 {[%clk 0:02:10]}  Bf4 {[%clk 0:01:04]} 24. Bf1 {[%clk 0:02:04]}  Rfc8 {[%clk 0:01:00]} 25. Bd4 {[%clk 0:01:59]}  Rxc2 {[%clk 0:01:00]} 26. Qxc2 {[%clk 0:01:59]}  Rxc2 {[%clk 0:00:40]} 27. Nxc2 {[%clk 0:02:00]}  Qh5 {[%clk 0:00:33]} 28. g3 {[%clk 0:01:59]}  Bg4 {[%clk 0:00:29]} 29. gxf4 {[%clk 0:01:47]}  Bf3+ {[%clk 0:00:25]} 30. Bg2 {[%clk 0:01:47]}  Bxg2+ {[%clk 0:00:20]} 31. Kxg2 {[%clk 0:01:47]}  Qg4+ {[%clk 0:00:20]} 32. Kf1 {[%clk 0:01:45]}  Qh3+ {[%clk 0:00:20]} 33. Kg1 {[%clk 0:01:44]}  Qg4+ {[%clk 0:00:21]} 34. Kh1 {[%clk 0:01:43]}  Qf3+ {[%clk 0:00:21]} 35. Kg1 {[%clk 0:01:43]}  Qg4+ {[%clk 0:00:21]} 36. Kf1 {[%clk 0:01:40]}  Qh3+ {[%clk 0:00:22]} 37. Kg1 {[%clk 0:01:40]}  Qg4+ {[%clk 0:00:22]} 1/2-1/2


[Site "https://www.chess.com"]

[Event "Titled Tuesday Blitz January 31 Late 2023"]
[White "Good, Daniel"]
[Black "Kaufman, Lawrence"]
[WhiteFideId "1302388"]
[BlackFideId "2000555"]
[WhiteElo "2141"]
[BlackElo "2188"]
[Result "1-0"]
[Round "09"]
[TimeControl "180+2"]
[Date "2023.01.31"]
[WhiteClock "0:01:11"]
[BlackClock "0:00:02"]

1. d4 {[%clk 0:02:56]}  Nf6 {[%clk 0:02:58]} 2. c4 {[%clk 0:02:51]}  e6 {[%clk 0:02:57]} 3. Nf3 {[%clk 0:02:51]}  d5 {[%clk 0:02:56]} 4. Nc3 {[%clk 0:02:48]}  Bb4 {[%clk 0:02:54]} 5. cxd5 {[%clk 0:02:48]}  exd5 {[%clk 0:02:53]} 6. Bg5 {[%clk 0:02:48]}  h6 {[%clk 0:02:48]} 7. Bh4 {[%clk 0:02:48]}  O-O {[%clk 0:02:45]} 8. e3 {[%clk 0:02:48]}  Bf5 {[%clk 0:02:42]} 9. Be2 {[%clk 0:02:47]}  c5 {[%clk 0:02:34]} 10. dxc5 {[%clk 0:02:40]}  g5 {[%clk 0:02:15]} 11. Bg3 {[%clk 0:02:37]}  Ne4 {[%clk 0:02:12]} 12. Be5 {[%clk 0:02:25]}  Nd7 {[%clk 0:01:43]} 13. Bd4 {[%clk 0:02:17]}  Ndxc5 {[%clk 0:01:40]} 14. O-O {[%clk 0:02:16]}  Ne6 {[%clk 0:01:35]} 15. a3 {[%clk 0:02:09]}  Bxc3 {[%clk 0:01:23]} 16. bxc3 {[%clk 0:02:07]}  Rc8 {[%clk 0:01:19]} 17. Rc1 {[%clk 0:02:05]}  Qa5 {[%clk 0:01:13]} 18. Qb3 {[%clk 0:02:03]}  b6 {[%clk 0:00:39]} 19. Rfd1 {[%clk 0:02:00]}  Rfd8 {[%clk 0:00:29]} 20. c4 {[%clk 0:01:30]}  N4c5 {[%clk 0:00:24]} 21. Qa2 {[%clk 0:01:27]}  dxc4 {[%clk 0:00:20]} 22. Bxc4 {[%clk 0:01:27]}  Bg6 {[%clk 0:00:11]} 23. Ba1 {[%clk 0:01:23]}  Ne4 {[%clk 0:00:05]} 24. Rxd8+ {[%clk 0:01:14]}  Rxd8 {[%clk 0:00:02]} 25. Qb2 {[%clk 0:01:11]} 1-0


[Site "https://www.chess.com"]

[Event "Titled Tuesday Blitz January 31 Late 2023"]
[White "Buchenau, Frank"]
[Black "Floresvillar Gonzalez, Luis Migu"]
[WhiteFideId "4604350"]
[BlackFideId "5100542"]
[WhiteElo "2222"]
[BlackElo "2043"]
[Result "1-0"]
[Round "09"]
[TimeControl "180+2"]
[Date "2023.01.31"]
[WhiteClock "0:00:08"]
[BlackClock "0:00:02"]

1. e4 {[%clk 0:03:00]}  c6 {[%clk 0:03:00]} 2. Nf3 {[%clk 0:03:00]}  d5 {[%clk 0:03:00]} 3. Nc3 {[%clk 0:03:00]}  Bg4 {[%clk 0:02:59]} 4. h3 {[%clk 0:02:55]}  Bxf3 {[%clk 0:02:57]} 5. Qxf3 {[%clk 0:02:55]}  e6 {[%clk 0:02:57]} 6. d3 {[%clk 0:02:54]}  Nf6 {[%clk 0:02:57]} 7. g3 {[%clk 0:02:49]}  Nbd7 {[%clk 0:02:55]} 8. Bd2 {[%clk 0:02:47]}  Bc5 {[%clk 0:02:55]} 9. Bg2 {[%clk 0:02:46]}  O-O {[%clk 0:02:53]} 10. O-O {[%clk 0:02:45]}  Qc7 {[%clk 0:02:52]} 11. Qe2 {[%clk 0:02:44]}  Qxg3 {[%clk 0:02:44]} 12. Na4 {[%clk 0:02:40]}  Qg6 {[%clk 0:02:38]} 13. Nxc5 {[%clk 0:02:34]}  Nxc5 {[%clk 0:02:37]} 14. e5 {[%clk 0:02:30]}  Nfd7 {[%clk 0:02:34]} 15. Kh2 {[%clk 0:02:19]}  Rae8 {[%clk 0:02:29]} 16. Bb4 {[%clk 0:02:02]}  f6 {[%clk 0:01:42]} 17. d4 {[%clk 0:01:56]}  Ne4 {[%clk 0:01:41]} 18. Bxf8 {[%clk 0:01:53]}  Rxf8 {[%clk 0:01:41]} 19. Rae1 {[%clk 0:01:34]}  fxe5 {[%clk 0:01:40]} 20. Bxe4 {[%clk 0:01:30]}  dxe4 {[%clk 0:01:39]} 21. Qxe4 {[%clk 0:01:29]}  Rf5 {[%clk 0:01:21]} 22. dxe5 {[%clk 0:01:09]}  Qf7 {[%clk 0:01:17]} 23. f4 {[%clk 0:00:54]}  Nxe5 {[%clk 0:01:07]} 24. Qd4 {[%clk 0:00:31]}  Nd7 {[%clk 0:00:49]} 25. Rd1 {[%clk 0:00:30]}  Rd5 {[%clk 0:00:46]} 26. Qe3 {[%clk 0:00:23]}  Qf5 {[%clk 0:00:43]} 27. Rde1 {[%clk 0:00:19]}  Qxc2+ {[%clk 0:00:38]} 28. Re2 {[%clk 0:00:18]}  Qf5 {[%clk 0:00:37]} 29. Qxe6+ {[%clk 0:00:18]}  Qxe6 {[%clk 0:00:37]} 30. Rxe6 {[%clk 0:00:19]}  Rd2+ {[%clk 0:00:37]} 31. Kg3 {[%clk 0:00:19]}  Rxb2 {[%clk 0:00:36]} 32. Re7 {[%clk 0:00:18]}  Nf6 {[%clk 0:00:33]} 33. Rfe1 {[%clk 0:00:14]}  b6 {[%clk 0:00:26]} 34. Rc7 {[%clk 0:00:13]}  Rxa2 {[%clk 0:00:24]} 35. Ree7 {[%clk 0:00:12]}  Nh5+ {[%clk 0:00:15]} 36. Kg4 {[%clk 0:00:11]}  Nf6+ {[%clk 0:00:12]} 37. Kf5 {[%clk 0:00:10]}  Ra5+ {[%clk 0:00:11]} 38. Ke6 {[%clk 0:00:10]}  h5 {[%clk 0:00:05]} 39. Rxg7+ {[%clk 0:00:08]}  Kh8 {[%clk 0:00:05]} 40. Kxf6 {[%clk 0:00:08]}  Rd5 {[%clk 0:00:03]} 41. Rh7+ {[%clk 0:00:07]}  Kg8 {[%clk 0:00:02]} 42. Rcg7+ {[%clk 0:00:08]}  Kf8 {[%clk 0:00:02]} 43. Rh8# {[%clk 0:00:08]} 1-0


[Site "https://www.chess.com"]

[Event "Titled Tuesday Blitz January 31 Late 2023"]
[White "Bongo Akanga Ndjila, Barthelemy"]
[Black "Zhou, Qiyu"]
[WhiteFideId "10609431"]
[BlackFideId "505161"]
[WhiteElo "1824"]
[BlackElo "2201"]
[Result "1-0"]
[Round "09"]
[TimeControl "180+2"]
[Date "2023.01.31"]
[WhiteClock "0:00:16"]
[BlackClock "0:01:17"]

1. d4 {[%clk 0:02:54]}  Nf6 {[%clk 0:02:59]} 2. Nf3 {[%clk 0:02:53]}  d5 {[%clk 0:02:59]} 3. c4 {[%clk 0:02:52]}  e6 {[%clk 0:02:59]} 4. cxd5 {[%clk 0:02:52]}  exd5 {[%clk 0:03:00]} 5. Bg5 {[%clk 0:02:52]}  Be7 {[%clk 0:03:00]} 6. Qc2 {[%clk 0:02:52]}  c6 {[%clk 0:03:00]} 7. e3 {[%clk 0:02:50]}  h6 {[%clk 0:03:00]} 8. Bh4 {[%clk 0:02:45]}  O-O {[%clk 0:02:58]} 9. Bd3 {[%clk 0:02:45]}  Be6 {[%clk 0:02:57]} 10. Nc3 {[%clk 0:02:36]}  Nbd7 {[%clk 0:02:56]} 11. Ne5 {[%clk 0:02:31]}  Rc8 {[%clk 0:02:56]} 12. f4 {[%clk 0:02:26]}  Nxe5 {[%clk 0:02:55]} 13. fxe5 {[%clk 0:02:26]}  Nd7 {[%clk 0:02:52]} 14. Bf2 {[%clk 0:02:17]}  c5 {[%clk 0:02:48]} 15. O-O {[%clk 0:02:14]}  a6 {[%clk 0:02:46]} 16. a4 {[%clk 0:02:13]}  Nb8 {[%clk 0:02:28]} 17. Bh7+ {[%clk 0:02:09]}  Kh8 {[%clk 0:02:27]} 18. Bf5 {[%clk 0:02:09]}  Qd7 {[%clk 0:02:27]} 19. Bg3 {[%clk 0:01:59]}  Nc6 {[%clk 0:02:25]} 20. Rad1 {[%clk 0:01:46]}  Bg5 {[%clk 0:02:17]} 21. Bxe6 {[%clk 0:00:43]}  Bxe3+ {[%clk 0:02:12]} 22. Kh1 {[%clk 0:00:42]}  fxe6 {[%clk 0:02:08]} 23. dxc5 {[%clk 0:00:33]}  Nb4 {[%clk 0:01:55]} 24. Qe2 {[%clk 0:00:29]}  Bxc5 {[%clk 0:01:55]} 25. Ne4 {[%clk 0:00:28]}  Be7 {[%clk 0:01:51]} 26. Qh5 {[%clk 0:00:19]}  Qxa4 {[%clk 0:01:44]} 27. Nf6 {[%clk 0:00:17]}  Bxf6 {[%clk 0:01:41]} 28. exf6 {[%clk 0:00:17]}  Rxf6 {[%clk 0:01:16]} 29. Rxf6 {[%clk 0:00:16]}  gxf6 {[%clk 0:01:16]} 30. Qxh6+ {[%clk 0:00:17]}  Kg8 {[%clk 0:01:17]} 31. Qg6+ {[%clk 0:00:16]}  Kh8 {[%clk 0:01:18]} 32. Qxf6+ {[%clk 0:00:16]}  Kg8 {[%clk 0:01:17]} 33. Qg6+ {[%clk 0:00:16]}  Kh8 {[%clk 0:01:17]} 34. Be5# {[%clk 0:00:16]} 1-0


[Site "https://www.chess.com"]

[Event "Titled Tuesday Blitz January 31 Late 2023"]
[White "Romero Ruscalleda, Josep"]
[Black "Sailer, Mike"]
[WhiteFideId "2231859"]
[BlackFideId "2012901"]
[WhiteElo "2160"]
[BlackElo "2109"]
[Result "0-1"]
[Round "09"]
[TimeControl "180+2"]
[Date "2023.01.31"]
[WhiteClock "0:00:02"]
[BlackClock "0:00:03"]

1. e4 {[%clk 0:03:00]}  d5 {[%clk 0:03:00]} 2. exd5 {[%clk 0:03:00]}  Qxd5 {[%clk 0:03:00]} 3. Nc3 {[%clk 0:03:00]}  Qd6 {[%clk 0:03:01]} 4. g3 {[%clk 0:02:59]}  Nf6 {[%clk 0:03:01]} 5. Bg2 {[%clk 0:02:59]}  c6 {[%clk 0:03:01]} 6. d4 {[%clk 0:02:58]}  Bf5 {[%clk 0:03:01]} 7. Bf4 {[%clk 0:02:58]}  Qd8 {[%clk 0:02:59]} 8. Nge2 {[%clk 0:02:58]}  e6 {[%clk 0:03:00]} 9. O-O {[%clk 0:02:57]}  Be7 {[%clk 0:03:00]} 10. a4 {[%clk 0:02:55]}  a5 {[%clk 0:03:00]} 11. h3 {[%clk 0:02:49]}  h6 {[%clk 0:03:00]} 12. Kh2 {[%clk 0:02:46]}  O-O {[%clk 0:02:59]} 13. g4 {[%clk 0:02:42]}  Bh7 {[%clk 0:02:59]} 14. Ng3 {[%clk 0:02:42]}  Nbd7 {[%clk 0:02:58]} 15. Qd2 {[%clk 0:02:40]}  Nb6 {[%clk 0:02:58]} 16. b3 {[%clk 0:02:39]}  Nbd5 {[%clk 0:02:58]} 17. Nxd5 {[%clk 0:02:36]}  cxd5 {[%clk 0:02:57]} 18. Rfe1 {[%clk 0:02:33]}  Rc8 {[%clk 0:02:53]} 19. Rac1 {[%clk 0:02:32]}  Ba3 {[%clk 0:02:45]} 20. Bxh6 {[%clk 0:02:15]}  Bxc1 {[%clk 0:02:30]} 21. Qxc1 {[%clk 0:02:09]}  gxh6 {[%clk 0:02:24]} 22. Qxh6 {[%clk 0:02:09]}  Rxc2 {[%clk 0:02:20]} 23. g5 {[%clk 0:02:00]}  Rxf2 {[%clk 0:01:31]} 24. gxf6 {[%clk 0:01:24]}  Qxf6 {[%clk 0:01:30]} 25. Qe3 {[%clk 0:01:21]}  Rc8 {[%clk 0:00:54]} 26. Nh5 {[%clk 0:01:16]}  Rxg2+ {[%clk 0:00:41]} 27. Kxg2 {[%clk 0:01:15]}  Rc2+ {[%clk 0:00:33]} 28. Re2 {[%clk 0:00:55]}  Rxe2+ {[%clk 0:00:25]} 29. Qxe2 {[%clk 0:00:55]}  Qg5+ {[%clk 0:00:23]} 30. Qg4 {[%clk 0:00:46]}  Qxg4+ {[%clk 0:00:20]} 31. hxg4 {[%clk 0:00:46]}  Bc2 {[%clk 0:00:20]} 32. Nf6+ {[%clk 0:00:44]}  Kg7 {[%clk 0:00:21]} 33. Ne8+ {[%clk 0:00:44]}  Kg6 {[%clk 0:00:19]} 34. Nd6 {[%clk 0:00:44]}  b6 {[%clk 0:00:13]} 35. Nc8 {[%clk 0:00:44]}  Bxb3 {[%clk 0:00:13]} 36. Nxb6 {[%clk 0:00:44]}  f5 {[%clk 0:00:09]} 37. gxf5+ {[%clk 0:00:43]}  Kxf5 {[%clk 0:00:09]} 38. Kf3 {[%clk 0:00:43]}  e5 {[%clk 0:00:09]} 39. Ke3 {[%clk 0:00:42]}  e4 {[%clk 0:00:09]} 40. Nc8 {[%clk 0:00:34]}  Bxa4 {[%clk 0:00:08]} 41. Nd6+ {[%clk 0:00:34]}  Ke6 {[%clk 0:00:08]} 42. Nb7 {[%clk 0:00:34]}  Bb3 {[%clk 0:00:07]} 43. Nc5+ {[%clk 0:00:34]}  Kd6 {[%clk 0:00:06]} 44. Nxb3 {[%clk 0:00:34]}  a4 {[%clk 0:00:07]} 45. Nc1 {[%clk 0:00:35]}  Kc6 {[%clk 0:00:07]} 46. Na2 {[%clk 0:00:35]}  Kb5 {[%clk 0:00:07]} 47. Nc3+ {[%clk 0:00:30]}  Kb4 {[%clk 0:00:04]} 48. Nxd5+ {[%clk 0:00:30]}  Kb3 {[%clk 0:00:05]} 49. Kxe4 {[%clk 0:00:27]}  a3 {[%clk 0:00:05]} 50. Nf4 {[%clk 0:00:16]}  a2 {[%clk 0:00:05]} 51. Nd3 {[%clk 0:00:14]}  a1=Q {[%clk 0:00:05]} 52. d5 {[%clk 0:00:15]}  Qh1+ {[%clk 0:00:04]} 53. Kd4 {[%clk 0:00:15]}  Qh4+ {[%clk 0:00:04]} 54. Kc5 {[%clk 0:00:14]}  Kc3 {[%clk 0:00:04]} 55. Ne5 {[%clk 0:00:12]}  Qb4+ {[%clk 0:00:02]} 56. Kc6 {[%clk 0:00:12]}  Qa4+ {[%clk 0:00:01]} 57. Kd6 {[%clk 0:00:12]}  Qa6+ {[%clk 0:00:02]} 58. Ke7 {[%clk 0:00:12]}  Qb6 {[%clk 0:00:02]} 59. Nc6 {[%clk 0:00:11]}  Qe3+ {[%clk 0:00:03]} 60. Kd6 {[%clk 0:00:11]}  Kc4 {[%clk 0:00:02]} 61. Ne5+ {[%clk 0:00:11]}  Kd4 {[%clk 0:00:02]} 62. Nc6+ {[%clk 0:00:11]}  Ke4 {[%clk 0:00:02]} 63. Ke6 {[%clk 0:00:10]}  Qh6+ {[%clk 0:00:02]} 64. Kd7 {[%clk 0:00:09]}  Kxd5 {[%clk 0:00:02]} 65. Ne7+ {[%clk 0:00:10]}  Ke5 {[%clk 0:00:02]} 66. Nc6+ {[%clk 0:00:09]}  Ke4 {[%clk 0:00:02]} 67. Ne7 {[%clk 0:00:09]}  Qg7 {[%clk 0:00:02]} 68. Ke6 {[%clk 0:00:09]}  Qh6+ {[%clk 0:00:02]} 69. Kf7 {[%clk 0:00:09]}  Qh5+ {[%clk 0:00:02]} 70. Ke6 {[%clk 0:00:09]}  Qe5+ {[%clk 0:00:02]} 71. Kd7 {[%clk 0:00:09]}  Qd4+ {[%clk 0:00:03]} 72. Ke6 {[%clk 0:00:09]}  Qa4 {[%clk 0:00:03]} 73. Kf6 {[%clk 0:00:09]}  Qa6+ {[%clk 0:00:03]} 74. Kf7 {[%clk 0:00:09]}  Ke5 {[%clk 0:00:04]} 75. Ng6+ {[%clk 0:00:10]}  Kf5 {[%clk 0:00:04]} 76. Ne7+ {[%clk 0:00:10]}  Kg5 {[%clk 0:00:05]} 77. Nd5 {[%clk 0:00:06]}  Qg6+ {[%clk 0:00:05]} 78. Ke7 {[%clk 0:00:05]}  Qg7+ {[%clk 0:00:05]} 79. Kd6 {[%clk 0:00:06]}  Kf5 {[%clk 0:00:05]} 80. Kc5 {[%clk 0:00:05]}  Ke5 {[%clk 0:00:04]} 81. Nb6 {[%clk 0:00:05]}  Qc7+ {[%clk 0:00:04]} 82. Kb5 {[%clk 0:00:05]}  Kd4 {[%clk 0:00:04]} 83. Na4 {[%clk 0:00:04]}  Qc4+ {[%clk 0:00:03]} 84. Ka5 {[%clk 0:00:04]}  Qc7+ {[%clk 0:00:03]} 85. Kb5 {[%clk 0:00:03]}  Qb7+ {[%clk 0:00:03]} 86. Nb6 {[%clk 0:00:02]}  Qb8 {[%clk 0:00:04]} 87. Kc6 {[%clk 0:00:02]}  Qe8+ {[%clk 0:00:03]} 0-1


[Site "https://www.chess.com"]